[Event "FIDE WCCC G12 2018"]
[Site "Santiago de Compostela"]
[Date "2018.11.12"]
[Round "8"]
[White "Kovacsi, Sara Kata"]
[Black "Rueda Nessi, Juana"]
[Result "0-1"]
[ECO "A06"]
[WhiteElo "1554"]
[BlackElo "1642"]
[Annotator "NA RC"]
[PlyCount "78"]
[EventDate "2018.11.04"]
[EventType "swiss"]
[EventCountry "ESP"]
[SourceTitle "playchess.com"]
[Source "ChessBase"]
[SourceQuality "1"]
[TimeControl "40/5400+30:1800+30"]

1. Nf3 {[%emt 0:00:00]} d5 {[%emt 0:00:00]} 2. g3 {[%emt 0:00:00]} e6 {[%emt 0:00:00]} 3. d4 {[%emt 0:01:58]} f5 {[%emt 0:00:14]} 4. c4 {[%emt 0:02:59]} Nf6 {[%emt 0:00:59]} 5. Nc3 {[%emt 0:04:38]} c6 {[%emt 0:01:30]} 6. Bg2 {[%emt 0:06:45]} Bd6 {[%emt 0:03:35]} 7. c5 {[%emt 0:05:54]} Bc7 {[%emt 0:04:00]} 8. Qc2 {[%emt 0:03:04]} O-O {[%emt 0:03:56]} 9. Bf4 {[%emt 0:05:30]} Bxf4 {[%emt 0:06:14]} 10. gxf4 {[%emt 0:00:06]} Ne4 {[%emt 0:00:43]} 11. e3 {[%emt 0:02:13]} Bd7 {[%emt 0:03:56]} 12. Nxe4 {[%emt 0:01:43]} fxe4 {[%emt 0:01:46]} 13. Ne5 {[%emt 0:00:45]} Be8 {[%emt 0:02:46]} 14. O-O-O {[%emt 0:06:29]} Nd7 {[%emt 0:03:54]} 15. Nxd7 {[%emt 0:05:30]} Qxd7 {[%emt 0:02:09]} 16. h4 {[%emt 0:07:00]} Qc7 {[%emt 0:08:54]} 17. Rdg1 {[%emt 0:05:57]} Qa5 {[%emt 0:01:27]} 18. Kb1 {[%emt 0:01:02]} b6 {[%emt 0:02:25]} 19. Rc1 {[%emt 0:03:11]} Rb8 {[%emt 0:03:07]} 20. Qc3 {[%emt 0:02:18]} Qa4 {[%emt 0:09:03]} 21. h5 {[%emt 0:05:40]} Bd7 {[%emt 0:06:33]} 22. f3 {[%emt 0:01:43]} exf3 {[%emt 0:02:04]} 23. Bxf3 {[%emt 0:00:05]} bxc5 {[%emt 0:10:27]} 24. Qxc5 {[%emt 0:00:45]} e5 {[%emt 0:06:43]} 25. dxe5 {[%emt 0:02:16]} Rb5 {[%emt 0:00:51]} 26. Qc3 {[%emt 0:01:24]} Rfb8 {[%emt 0:02:20]} 27. Rh2 {[%emt 0:01:12]} Ra5 {[%emt 0:01:04]} 28. b3 {[%emt 0:02:45]} Bf5+ {[%emt 0:02:05]} 29. e4 {[%emt 0:03:55]} dxe4 {[%emt 0:01:49]} 30. Bd1 {[%emt 0:01:53]} e3+ {[%emt 0:00:40]} 31. Ka1 {[%emt 0:00:16]} Qxf4 {[%emt 0:03:11]} 32. Qc4+ {[%emt 0:06:09]} Qxc4 {[%emt 0:01:52]} 33. Rxc4 {[%emt 0:00:10]} Rxe5 {[%emt 0:01:11]} 34. Rxc6 {[%emt 0:02:02]} Rd8 {[%emt 0:03:24]} 35. Rc1 {[%emt 0:01:15]} Rd2 {[%emt 0:00:56]} 36. Be2 {[%emt 0:02:03]} h6 {[%emt 0:01:03]} 37. Bc4+ {[%emt 0:01:19]} Kh7 {[%emt 0:00:20]} 38. Rxd2 {[%emt 0:00:13]} exd2 {[%emt 0:00:26]} 39. Rd1 {[%emt 0:00:54]} Re1 {[%emt 0:00:17]} 0-1

[Event "FIDE WCCC G12 2018"]
[Site "Santiago de Compostela"]
[Date "2018.11.13"]
[Round "9"]
[White "Van Foreest, Machteld"]
[Black "Cornileau, Juliette"]
[Result "1-0"]
[ECO "B32"]
[WhiteElo "2003"]
[BlackElo "1740"]
[Annotator "NA RC"]
[PlyCount "55"]
[EventDate "2018.11.04"]
[EventType "swiss"]
[EventCountry "ESP"]
[SourceTitle "playchess.com"]
[Source "ChessBase"]
[SourceQuality "1"]
[TimeControl "40/5400+30:1800+30"]

{[%evp 8,47,27,34,14,19,26,29,32767,32767,32767,32767,32767,32767,46,32767,48,21,31,-19,23,7,70,76,32767,32767,32767,87,32767,32767,32767,151,408,412,32767,32767,32767,32767,463,469,516,522]} 1. e4 {[%emt 0:00:00]} c5 {[%emt 0:00:00]} 2. Nf3 {[%emt 0:00:00]} Nc6 {[%emt 0:00:00]} 3. d4 {[%emt 0:00:00]} cxd4 {[%emt 0:00:00]} 4. Nxd4 {[%emt 0:00:00]} e5 {[%emt 0:00:00]} 5. Nb5 {[%emt 0:00:00]} d6 {[%emt 0:00:00]} 6. N1c3 {[%emt 0:00:01]} a6 {[%emt 0:00:00]} 7. Na3 {[%emt 0:00:09]} b5 {[%emt 0:00:04]} 8. Nd5 {[%emt 0:00:05]} Nge7 {[%emt 0:00:07]} 9. c4 {[%emt 0:02:26]} Nxd5 {[%emt 0:01:11] B32: Sicilian: Löwenthal and Kalashnikov Variations} 10. exd5 {[%emt 0:02:29]} Nd4 {[%emt 0:00:54] LiveBook: 56 Games} 11. Be3 {[%emt 0:03:24]} (11. cxb5 Be7 12. Bd3 O-O 13. O-O f5 14. Be3 Nxb5 15. Nc4 Rb8 16. f3 Bb7 17. a4 Nd4 18. Bxd4 exd4 19. a5 Bxd5 20. Nb6 {0-1 (48) Martinez Alcantara,J (2561)-Naiditsch,A (2711) Linares 2018}) 11... Be7 {[%emt 0:05:14]} 12. Bxd4 {[%emt 0:08:58]} exd4 {[%emt 0:00:07]} 13. Be2 {[%emt 0:07:41]} O-O {[%emt 0:19:42]} 14. cxb5 {[%emt 0:04:28]} Bf6 $146 {[%emt 0:17:45]} ({Predecessor:} 14... Qa5+ $11 15. Kf1 (15. Qd2 Qxd2+ 16. Kxd2 Bg5+ 17. Kd1 {1-0 (51) Xiong,F (1815)-Abrahamyan,A (1573) Willingen 2009}) 15... Bb7) 15. O-O {[%emt 0:04:23]} Qa5 {[%emt 0:22:24]} 16. Bd3 {[%emt 0:11:18]} Rb8 {[%emt 0:08:07]} 17. Qe2 {[%emt 0:06:16]} Bb7 {[%emt 0:05:29]} 18. bxa6 {[%emt 0:04:57]} Bxd5 {[%emt 0:01:01]} 19. Nb5 {[%emt 0:00:21]} Qxa6 $2 {[%emt 0:04:31]} (19... g6 $16) 20. Qh5 $1 {[%emt 0:02:44]} Be4 {[%emt 0:11:09]} 21. Bxe4 {[%emt 0:00:05]} g6 {[%emt 0:00:07]} 22. Qf3 {[%emt 0:00:12]} Qxb5 {[%emt 0:01:30]} 23. Qxf6 {[%emt 0:00:04]} d5 $18 {[%emt 0:00:27]} 24. Bf3 {[%emt 0:00:11]} Qxb2 {[%emt 0:00:41]} 25. Bxd5 {[%emt 0:00:19]} Rbd8 {[%emt 0:00:14]} 26. Bxf7+ {[%emt 0:00:11]} Rxf7 {[%emt 0:00:14]} 27. Qxd8+ {[%emt 0:00:04]} Kg7 {[%emt 0:00:04]} 28. Rad1 {[%emt 0:00:31]} 1-0

[Event "FIDE WCCC G12 2018"]
[Site "Santiago de Compostela"]
[Date "2018.11.13"]
[Round "9"]
[White "Nadzamova, Viktoria"]
[Black "Tsirekidze, Barbare"]
[Result "0-1"]
[ECO "B41"]
[WhiteElo "1923"]
[BlackElo "1611"]
[Annotator "NA RC"]
[PlyCount "104"]
[EventDate "2018.11.04"]
[EventType "swiss"]
[EventCountry "ESP"]
[SourceTitle "playchess.com"]
[Source "ChessBase"]
[SourceQuality "1"]
[TimeControl "40/5400+30:1800+30"]

{[%evp 8,104,41,32767,32767,14,32767,32767,56,32767,43,45,72,26,64,40,51,66,106,60,102,98,122,141,152,19,32767,32767,32767,-70,32767,-72,32767,-84,32767,-70,32767,32767,32767,32767,32767,32767,-65,32767,-29,32767,32767,-32,32767,32767,32767,32767,32767,-64,-41,-39,32767,-74,-56,-94,0,32767,32767,-64,-115,32767,32767,32767,32767,32767,32767,-256,32767,32767,32767,32767,-261,-350,-362,-352,-287,-283,-339,-1592,32767,32767,-359,-419,32767,32767,-495,-537,-433,-483,-945,-825,-1283,-852,-790]} 1. e4 {[%emt 0:00:00]} c5 {[%emt 0:00:00]} 2. Nf3 {[%emt 0:00:00]} e6 {[%emt 0:00:00]} 3. d4 {[%emt 0:00:00]} cxd4 {[%emt 0:00:00]} 4. Nxd4 {[%emt 0:00:05]} a6 {[%emt 0:00:00]} 5. c4 {[%emt 0:00:38]} Nf6 {[%emt 0:00:46]} 6. Bd3 {[%emt 0:00:43]} Be7 {[%emt 0:01:30]} 7. O-O {[%emt 0:00:41]} d6 {[%emt 0:00:27]} 8. Nc3 {[%emt 0:00:29]} O-O {[%emt 0:00:22]} 9. Be3 {[%emt 0:01:33]} Qc7 {[%emt 0:04:36] B42: Sicilian: Kan Variation: 5 Bd3} (9... Nbd7 10. f4 Nc5 11. Bc2 e5 12. Nf5 Bxf5 13. exf5 exf4 14. Rxf4 Re8 15. Kh1 Rc8 16. Bd4 Ncd7 17. b3 d5 18. Nxd5 Nxd5 19. cxd5 {0-1 (37) Quesada Perez,Y (2627)-Grandelius,N (2647) chess.com INT 2018}) 10. f4 {[%emt 0:02:25] LiveBook: 8 Games} Nc6 {[%emt 0:02:28]} 11. Kh1 {[%emt 0:05:12]} Bd7 {[%emt 0:03:05]} 12. Nb3 $146 {[%emt 0:20:14]} ({Predecessor:} 12. Qf3 Rfd8 13. Nxc6 Bxc6 14. Qh3 d5 15. exd5 exd5 16. cxd5 {½-½ (16) Schiestl,J (2170)-Burschowsky,M (2169) Austria 2003}) 12... Na5 {[%emt 0:12:13]} ({Black should try} 12... b5 $14) 13. Nd2 {[%emt 0:10:07]} b6 {[%emt 0:20:50]} 14. Rc1 {[%emt 0:02:25]} Nb7 {[%emt 0:03:54]} 15. b4 {[%emt 0:02:03]} Rfc8 {[%emt 0:09:15]} 16. Na4 {[%emt 0:05:12]} (16. a3 $16) 16... Bxa4 {[%emt 0:00:06]} 17. Qxa4 {[%emt 0:00:06]} a5 {[%emt 0:05:34]} 18. Bb1 {[%emt 0:09:23]} (18. b5 $1 $11) 18... axb4 {[%emt 0:02:33]} 19. Qxb4 {[%emt 0:00:15]} Nc5 {[%emt 0:00:09]} 20. Qc3 {[%emt 0:05:56]} Nfd7 {[%emt 0:05:39]} 21. Qc2 {[%emt 0:05:22]} Nf8 {[%emt 0:00:23]} 22. f5 {[%emt 0:02:40]} Bf6 {[%emt 0:07:01]} 23. g4 {[%emt 0:02:26]} Ra3 {[%emt 0:03:03]} 24. Nb3 {[%emt 0:00:39]} Be5 {[%emt 0:05:32]} 25. Rcd1 {[%emt 0:04:53]} Qe7 {[%emt 0:05:39]} 26. Bc1 {[%emt 0:01:10]} Ra7 {[%emt 0:03:56]} 27. Nd4 {[%emt 0:02:18]} Bxd4 {[%emt 0:00:42]} 28. Rxd4 {[%emt 0:00:07]} Rac7 {[%emt 0:01:00]} 29. Qd1 {[%emt 0:01:14]} Nb7 {[%emt 0:00:24]} 30. Bd3 {[%emt 0:02:04]} ({White should try} 30. f6 $1 $11 gxf6 31. g5) 30... e5 {[%emt 0:00:31]} 31. Rd5 {[%emt 0:00:29]} Nc5 {[%emt 0:01:01]} 32. Ba3 {[%emt 0:03:45]} Nfd7 {[%emt 0:00:58]} 33. Bb1 {[%emt 0:00:55]} Rc6 {[%emt 0:00:20]} (33... Nf6 $17 34. Rxd6 Ncxe4 35. Bxe4 Nxe4) 34. Re1 {[%emt 0:01:19]} Nb7 {[%emt 0:01:34]} 35. Qd2 {[%emt 0:03:21]} Nf6 {[%emt 0:00:30]} ({Ein No Go ist} 35... Rxc4 36. Bxd6 Nxd6 37. Rxd6 $11) 36. Rd3 {[%emt 0:01:29]} Rxc4 {[%emt 0:01:10]} 37. Bxd6 {[%emt 0:00:54]} Nxd6 {[%emt 0:00:05]} 38. Rxd6 {[%emt 0:00:05]} Nxg4 {[%emt 0:00:46]} 39. Rg1 {[%emt 0:00:28]} Nf2+ {[%emt 0:00:13]} 40. Kg2 {[%emt 0:00:00]} Nxe4 {[%emt 0:00:00]} 41. Bxe4 {[%emt 0:03:57]} Rxe4 {[%emt 0:00:23]} 42. f6 {[%emt 0:00:36] [#]} Re2+ $1 {[%emt 0:06:48]} 43. Qxe2 {[%emt 0:05:49]} Qxd6 {[%emt 0:00:05]} 44. fxg7 {[%emt 0:00:30]} Qd5+ {[%emt 0:01:05]} ({Much less strong is} 44... Kxg7 45. Qe4 $19) 45. Qf3 {[%emt 0:01:07]} Rc2+ {[%emt 0:00:25]} 46. Kg3 {[%emt 0:00:16]} Qxf3+ {[%emt 0:00:14]} (46... Qd8 $142 47. h3 Rxa2) 47. Kxf3 {[%emt 0:00:07]} Rxa2 {[%emt 0:00:03]} 48. h4 {[%emt 0:00:15]} Ra4 {[%emt 0:01:42]} 49. h5 {[%emt 0:00:49]} Rh4 {[%emt 0:00:16]} 50. Rg5 {[%emt 0:00:33]} f6 {[%emt 0:00:13]} 51. Rg2 {[%emt 0:00:22]} Rxh5 {[%emt 0:00:07]} 52. Ke4 $19 {[%emt 0:00:07]} Rg5 {[%emt 0:00:17]} 0-1

[Event "FIDE WCCC G12 2018"]
[Site "Santiago de Compostela"]
[Date "2018.11.13"]
[Round "9"]
[White "Omonova, Umida"]
[Black "Zvereva, Margarita"]
[Result "1-0"]
[ECO "B52"]
[WhiteElo "1854"]
[BlackElo "1787"]
[Annotator "NA RC"]
[PlyCount "71"]
[EventDate "2018.11.04"]
[EventType "swiss"]
[EventCountry "ESP"]
[SourceTitle "playchess.com"]
[Source "ChessBase"]
[SourceQuality "1"]
[TimeControl "40/5400+30:1800+30"]

{[%evp 16,69,18,16,26,30,35,4,32767,32767,8,0,0,0,0,-5,-8,0,-10,-25,0,-12,2,0,0,2,57,53,1223,1363,1292,1510,1370,1312,32767,83,1352,2026,32767,5693,1479,5677,6002,29980,29975,29972,32767,32767,3062,32767,32767,32767,29979,29989,29987,29989]} 1. e4 {[%emt 0:00:18]} c5 {[%emt 0:00:00]} 2. Nf3 {[%emt 0:00:15]} d6 {[%emt 0:00:00]} 3. Bb5+ {[%emt 0:01:18]} Bd7 {[%emt 0:00:00]} 4. Bxd7+ {[%emt 0:00:08]} Nxd7 {[%emt 0:00:02]} 5. O-O {[%emt 0:00:05]} Ngf6 {[%emt 0:00:16]} 6. Re1 {[%emt 0:01:31]} e6 {[%emt 0:00:24]} 7. c3 {[%emt 0:02:26]} Be7 {[%emt 0:00:58]} 8. d4 {[%emt 0:01:44]} cxd4 {[%emt 0:02:17]} 9. cxd4 {[%emt 0:01:38]} d5 {[%emt 0:00:25]} 10. e5 {[%emt 0:02:23]} Ne4 {[%emt 0:00:08] LiveBook: 57 Partien} 11. Nbd2 {[%emt 0:00:21]} Nxd2 {[%emt 0:00:12]} 12. Bxd2 {[%emt 0:00:15]} O-O {[%emt 0:01:04]} 13. Rc1 {[%emt 0:00:58] B52: Sicilian: Moscow Variation with 3...Bd7} Nb8 {[%emt 0:06:32]} (13... Qb6 14. Qc2 Nb8 15. Qc7 Bd8 16. Qxb6 Bxb6 17. Bb4 Re8 18. Bc5 Nc6 19. b4 Rec8 20. a4 Bxc5 21. bxc5 {½-½ (70) Kosteniuk,A (2555)-Kozul,Z (2613) Tallinn 2016}) 14. a3 {[%emt 0:04:40]} Nc6 {[%emt 0:00:21]} 15. Rc3 {[%emt 0:01:57]} Na5 {[%emt 0:03:37]} 16. Rd3 $146 {[%emt 0:03:34]} ({Predecessor:} 16. Be3 b5 17. Nd2 b4 18. axb4 Bxb4 19. Rc2 Qd7 20. Rf1 Rfc8 21. f4 Qb5 {0-1 (54) Verhille,E (1862)-Grundman,A (1928) Nimes 2018}) 16... Nc4 {[%emt 0:02:24]} 17. Bc3 {[%emt 0:03:08]} Qd7 {[%emt 0:07:45]} 18. Nd2 {[%emt 0:02:01]} g6 {[%emt 0:02:54]} 19. Nxc4 {[%emt 0:00:28]} dxc4 {[%emt 0:00:05]} 20. Rh3 {[%emt 0:00:08]} Rfe8 {[%emt 0:12:41]} ({Black should try} 20... b5 $11) 21. Qf3 {[%emt 0:00:58]} Kg7 $2 {[%emt 0:17:28] [#]} (21... Rf8 $14) 22. Rxh7+ $3 {[%emt 0:06:49]} Kxh7 {[%emt 0:00:07]} 23. Qxf7+ {[%emt 0:00:03]} Kh8 {[%emt 0:00:14]} 24. Re3 {[%emt 0:00:07]} Qd8 {[%emt 0:01:55]} 25. Rh3+ {[%emt 0:05:54]} Bh4 {[%emt 0:00:10]} 26. Qxg6 {[%emt 0:01:17]} Qe7 {[%emt 0:04:15]} 27. Qg4 {[%emt 0:00:30]} Qg7 {[%emt 0:08:46]} 28. Qxh4+ {[%emt 0:00:07]} Kg8 {[%emt 0:00:07]} 29. Rg3 {[%emt 0:00:04]} Qxg3 {[%emt 0:00:06]} 30. Qxg3+ {[%emt 0:00:03]} Kh7 {[%emt 0:00:20]} 31. Qh4+ {[%emt 0:00:07]} Kg8 {[%emt 0:06:04]} 32. Qg5+ {[%emt 0:00:40]} Kh8 {[%emt 0:00:12]} 33. d5 {[%emt 0:00:12]} Rad8 {[%emt 0:03:02]} 34. d6 {[%emt 0:00:06]} b5 {[%emt 0:03:23]} 35. f4 {[%emt 0:00:08]} Rd7 {[%emt 0:03:25]} 36. Qh5+ {[%emt 0:00:32]} 1-0

[Event "FIDE WCCC G12 2018"]
[Site "Santiago de Compostela"]
[Date "2018.11.13"]
[Round "9"]
[White "Shuqja, Klean"]
[Black "Denic, Hana"]
[Result "1-0"]
[ECO "B40"]
[WhiteElo "1798"]
[BlackElo "1636"]
[Annotator "NA RC"]
[PlyCount "63"]
[EventDate "2018.11.04"]
[EventType "swiss"]
[EventCountry "ESP"]
[SourceTitle "playchess.com"]
[Source "ChessBase"]
[SourceQuality "1"]
[TimeControl "40/5400+30:1800+30"]

1. e4 {[%emt 0:00:00]} c5 {[%emt 0:00:00]} 2. Nf3 {[%emt 0:00:00]} e6 {[%emt 0:00:00]} 3. d4 {[%emt 0:00:00]} cxd4 {[%emt 0:00:01]} 4. Nxd4 {[%emt 0:00:00]} Nf6 {[%emt 0:00:21]} 5. Bd3 {[%emt 0:00:00]} d6 {[%emt 0:00:24]} 6. O-O {[%emt 0:00:10]} Be7 {[%emt 0:00:20]} 7. Nc3 {[%emt 0:00:22]} O-O {[%emt 0:00:31]} 8. Kh1 {[%emt 0:01:21]} Nc6 {[%emt 0:01:02]} 9. Be3 {[%emt 0:00:34]} a6 {[%emt 0:01:20]} 10. f4 {[%emt 0:01:14]} e5 {[%emt 0:03:37]} 11. Nb3 {[%emt 0:10:24]} Ng4 {[%emt 0:07:21]} 12. Bg1 {[%emt 0:07:11]} exf4 {[%emt 0:07:27]} 13. Rxf4 {[%emt 0:09:44]} Nce5 {[%emt 0:10:19]} 14. Be2 {[%emt 0:02:45]} Nh6 {[%emt 0:03:03]} 15. Nd4 {[%emt 0:03:46]} Bg5 {[%emt 0:05:11]} 16. Rf1 {[%emt 0:00:54]} g6 {[%emt 0:02:31]} 17. Nf3 {[%emt 0:04:28]} Nxf3 {[%emt 0:04:10]} 18. Bxf3 {[%emt 0:00:38]} Re8 {[%emt 0:09:45]} 19. Nd5 {[%emt 0:04:24]} Rf8 {[%emt 0:04:37]} 20. Bb6 {[%emt 0:06:57]} Qd7 {[%emt 0:00:32]} 21. h3 {[%emt 0:07:58]} f5 {[%emt 0:13:54]} 22. Bd4 {[%emt 0:09:42]} Qf7 {[%emt 0:05:47]} 23. Nb6 {[%emt 0:01:28]} Rb8 {[%emt 0:00:18]} 24. e5 {[%emt 0:00:46]} Qe7 {[%emt 0:02:19]} 25. Re1 {[%emt 0:01:40]} Bf4 {[%emt 0:01:16]} 26. Nd5 {[%emt 0:04:03]} Qh4 {[%emt 0:02:18]} 27. Nxf4 {[%emt 0:00:17]} Qxf4 {[%emt 0:00:20]} 28. Bd5+ {[%emt 0:00:11]} Nf7 {[%emt 0:04:44]} 29. e6 {[%emt 0:00:45]} Bxe6 {[%emt 0:00:31]} 30. Bxe6 {[%emt 0:00:40]} Rbe8 {[%emt 0:00:17]} 31. Qd3 {[%emt 0:01:12]} Qh4 {[%emt 0:04:10]} 32. Bxf7+ {[%emt 0:01:22]} 1-0

[Event "FIDE WCCC G12 2018"]
[Site "Santiago de Compostela"]
[Date "2018.11.13"]
[Round "9"]
[White "Munkhzul, Davaakhuu"]
[Black "Zavivaeva, Emilia"]
[Result "0-1"]
[ECO "C09"]
[WhiteElo "1781"]
[BlackElo "1633"]
[Annotator "NA RC"]
[PlyCount "114"]
[EventDate "2018.11.04"]
[EventType "swiss"]
[EventCountry "ESP"]
[SourceTitle "playchess.com"]
[Source "ChessBase"]
[SourceQuality "1"]
[TimeControl "40/5400+30:1800+30"]

1. e4 {[%emt 0:00:00]} e6 {[%emt 0:00:00]} 2. d4 {[%emt 0:00:00]} d5 {[%emt 0:00:06]} 3. Nd2 {[%emt 0:00:00]} c5 {[%emt 0:00:47]} 4. Ngf3 {[%emt 0:00:05]} Nc6 {[%emt 0:00:27]} 5. exd5 {[%emt 0:00:29]} exd5 {[%emt 0:00:04]} 6. Bb5 {[%emt 0:08:27]} Qe7+ {[%emt 0:00:12]} 7. Be2 {[%emt 0:02:00]} Qc7 {[%emt 0:00:12]} 8. O-O {[%emt 0:00:44]} Nf6 {[%emt 0:00:30]} 9. Re1 {[%emt 0:04:33]} cxd4 {[%emt 0:00:43]} 10. Bb5+ {[%emt 0:01:27]} Be7 {[%emt 0:00:37]} 11. Qe2 {[%emt 0:02:01]} a6 {[%emt 0:06:27]} 12. Bxc6+ {[%emt 0:01:56]} bxc6 {[%emt 0:00:04]} 13. Nxd4 {[%emt 0:00:33]} Ra7 {[%emt 0:01:23]} 14. b3 {[%emt 0:08:44]} O-O {[%emt 0:01:33]} 15. Bb2 {[%emt 0:01:24]} c5 {[%emt 0:03:19]} 16. N4f3 {[%emt 0:00:45]} Bf5 {[%emt 0:01:48]} 17. Nf1 {[%emt 0:04:14]} d4 {[%emt 0:08:12]} 18. Ng3 {[%emt 0:06:26]} Bg6 {[%emt 0:05:04]} 19. c3 {[%emt 0:04:37]} d3 {[%emt 0:06:45]} 20. Qd2 {[%emt 0:03:20]} c4 {[%emt 0:02:16]} 21. bxc4 {[%emt 0:02:23]} Bd6 {[%emt 0:01:40]} 22. Qd1 {[%emt 0:15:00]} Qxc4 {[%emt 0:27:58]} 23. Nd2 {[%emt 0:17:23]} Qc6 {[%emt 0:05:05]} 24. c4 {[%emt 0:01:59]} Bf4 {[%emt 0:06:01]} 25. Bxf6 {[%emt 0:03:23]} Qxf6 {[%emt 0:00:14]} 26. Nde4 {[%emt 0:00:58]} Qd4 {[%emt 0:01:22]} 27. Qa4 {[%emt 0:02:05]} d2 {[%emt 0:01:35]} 28. Nxd2 {[%emt 0:01:02]} Qxd2 {[%emt 0:01:25]} 29. c5 {[%emt 0:01:25]} Bxg3 {[%emt 0:03:38]} 30. hxg3 {[%emt 0:00:06]} Rc7 {[%emt 0:00:46]} 31. Qxa6 {[%emt 0:02:52]} Rxc5 {[%emt 0:00:36]} 32. Rad1 {[%emt 0:00:16]} Qa5 {[%emt 0:01:17]} 33. Qd6 {[%emt 0:00:21]} Qc7 {[%emt 0:01:21]} 34. Qd4 {[%emt 0:00:33]} h6 {[%emt 0:01:41]} 35. Qb2 {[%emt 0:02:21]} Rc2 {[%emt 0:00:36]} 36. Qa3 {[%emt 0:00:34]} Qc5 {[%emt 0:01:37]} 37. Qf3 {[%emt 0:00:47]} Rxa2 {[%emt 0:00:50]} 38. Rd5 {[%emt 0:01:18]} Qb4 {[%emt 0:01:14]} 39. Rde5 {[%emt 0:01:30]} Qa3 {[%emt 0:08:48]} 40. R5e3 {[%emt 0:00:00]} Qa8 {[%emt 0:00:00]} 41. Qf4 {[%emt 0:01:20]} Ra1 {[%emt 0:02:03]} 42. Qe5 {[%emt 0:01:11]} Rxe1+ {[%emt 0:02:40]} 43. Rxe1 {[%emt 0:00:04]} Rd8 {[%emt 0:00:26]} 44. Qc5 {[%emt 0:01:27]} Be4 {[%emt 0:02:30]} 45. f3 {[%emt 0:01:31]} Bg6 {[%emt 0:01:08]} 46. Kh2 {[%emt 0:01:05]} Rd2 {[%emt 0:01:21]} 47. Qe3 {[%emt 0:01:04]} Qa2 {[%emt 0:01:23]} 48. Rg1 {[%emt 0:00:23]} Re2 {[%emt 0:01:06]} 49. Qc3 {[%emt 0:00:21]} Rf2 {[%emt 0:02:16]} 50. Qc6 {[%emt 0:01:00]} Qe2 {[%emt 0:01:21]} 51. Qa8+ {[%emt 0:01:10]} Kh7 {[%emt 0:00:09]} 52. Qd5 {[%emt 0:00:05]} Qb2 {[%emt 0:02:30]} 53. Qc6 {[%emt 0:00:23]} Qe5 {[%emt 0:02:06]} 54. Rc1 {[%emt 0:00:33]} Bh5 {[%emt 0:01:36]} 55. f4 {[%emt 0:01:13]} Qe2 {[%emt 0:01:33]} 56. Qd5 {[%emt 0:00:23]} Bg6 {[%emt 0:00:53]} 57. Rc4 {[%emt 0:00:42]} Rf1 {[%emt 0:01:48]} 0-1

[Event "FIDE WCCC G12 2018"]
[Site "Santiago de Compostela"]
[Date "2018.11.13"]
[Round "9"]
[White "Wagner, Margarethe"]
[Black "Oz, Irem Ezra"]
[Result "0-1"]
[ECO "C42"]
[WhiteElo "1766"]
[BlackElo "1564"]
[Annotator "NA RC"]
[PlyCount "142"]
[EventDate "2018.11.04"]
[EventType "swiss"]
[EventCountry "ESP"]
[SourceTitle "playchess.com"]
[Source "ChessBase"]
[SourceQuality "1"]
[TimeControl "40/5400+30:1800+30"]

1. e4 {[%emt 0:00:00]} e5 {[%emt 0:00:00]} 2. Nf3 {[%emt 0:00:00]} Nf6 {[%emt 0:00:20]} 3. Nc3 {[%emt 0:01:29]} Bb4 {[%emt 0:00:34]} 4. d3 {[%emt 0:02:41]} d5 {[%emt 0:04:40]} 5. exd5 {[%emt 0:05:33]} Nxd5 {[%emt 0:00:26]} 6. Bd2 {[%emt 0:03:01]} O-O {[%emt 0:02:15]} 7. Nxd5 {[%emt 0:03:18]} Bxd2+ {[%emt 0:00:15]} 8. Qxd2 {[%emt 0:00:34]} Qxd5 {[%emt 0:00:21]} 9. Be2 {[%emt 0:02:22]} Nc6 {[%emt 0:03:28]} 10. O-O {[%emt 0:02:44]} h6 {[%emt 0:01:03]} 11. Rfd1 {[%emt 0:07:33]} Be6 {[%emt 0:01:43]} 12. c3 {[%emt 0:03:42]} Rad8 {[%emt 0:03:05]} 13. Qe3 {[%emt 0:05:00]} Rd7 {[%emt 0:11:08]} 14. b4 {[%emt 0:04:37]} Re8 {[%emt 0:25:00]} 15. Nd2 {[%emt 0:07:23]} Rde7 {[%emt 0:16:15]} 16. Bf3 {[%emt 0:04:02]} Qd7 {[%emt 0:03:13]} 17. Ne4 {[%emt 0:03:34]} b6 {[%emt 0:02:53]} 18. a4 {[%emt 0:03:47]} Bg4 {[%emt 0:01:41]} 19. Bxg4 {[%emt 0:02:40]} Qxg4 {[%emt 0:00:12]} 20. h3 {[%emt 0:03:30]} Qe6 {[%emt 0:00:30]} 21. Qf3 {[%emt 0:03:14]} Rd7 {[%emt 0:03:17]} 22. a5 {[%emt 0:02:06]} Red8 {[%emt 0:01:23]} 23. axb6 {[%emt 0:02:50]} axb6 {[%emt 0:01:50]} 24. b5 {[%emt 0:02:15]} Ne7 {[%emt 0:00:18]} 25. c4 {[%emt 0:00:36]} Nf5 {[%emt 0:01:12]} 26. Nc3 {[%emt 0:04:35]} Ne7 {[%emt 0:02:07]} 27. Ra7 {[%emt 0:02:18]} Qg6 {[%emt 0:01:10]} 28. Qe4 {[%emt 0:01:27]} Qe6 {[%emt 0:03:22]} 29. Re1 {[%emt 0:02:20]} Rxd3 {[%emt 0:00:49]} 30. Qxe5 {[%emt 0:00:53]} Qxe5 {[%emt 0:01:04]} 31. Rxe5 {[%emt 0:00:05]} Rxc3 {[%emt 0:00:24]} 32. Rxe7 {[%emt 0:00:07]} Rxc4 {[%emt 0:00:06]} 33. Raxc7 {[%emt 0:01:04]} Rxc7 {[%emt 0:00:13]} 34. Rxc7 {[%emt 0:00:03]} Rd5 {[%emt 0:00:22]} 35. Rc8+ {[%emt 0:00:54]} Kh7 {[%emt 0:00:06]} 36. Rc7 {[%emt 0:00:33]} f6 {[%emt 0:00:09]} 37. Rc2 {[%emt 0:02:24]} Rxb5 {[%emt 0:00:22]} 38. Kf1 {[%emt 0:00:58]} Kg6 {[%emt 0:00:07]} 39. Ke2 {[%emt 0:00:24]} Rb3 {[%emt 0:00:53]} 40. Kd2 {[%emt 0:00:00]} Kf5 {[%emt 0:00:00]} 41. Rc7 {[%emt 0:03:46]} g5 {[%emt 0:03:43]} 42. Rh7 {[%emt 0:02:40]} Kg6 {[%emt 0:00:13]} 43. Rb7 {[%emt 0:02:06]} h5 {[%emt 0:01:53]} 44. Kc2 {[%emt 0:02:03]} Rb5 {[%emt 0:01:06]} 45. Rb8 {[%emt 0:02:27]} Rf5 {[%emt 0:01:06]} 46. f3 {[%emt 0:00:57]} Rb5 {[%emt 0:00:42]} 47. Rh8 {[%emt 0:02:55]} h4 {[%emt 0:00:18]} 48. Re8 {[%emt 0:01:14]} Re5 {[%emt 0:01:13]} 49. Rg8+ {[%emt 0:02:11]} Kf7 {[%emt 0:00:12]} 50. Rb8 {[%emt 0:00:48]} Re2+ {[%emt 0:05:06]} 51. Kd3 {[%emt 0:00:40]} Rxg2 {[%emt 0:00:13]} 52. Rxb6 {[%emt 0:01:09]} Kg6 {[%emt 0:02:23]} 53. Ke3 {[%emt 0:02:26]} Rg3 {[%emt 0:03:22]} 54. Kf2 {[%emt 0:00:26]} Rxh3 {[%emt 0:00:56]} 55. Kg2 {[%emt 0:00:18]} Rg3+ {[%emt 0:00:03]} 56. Kf2 {[%emt 0:00:23]} g4 {[%emt 0:00:21]} 57. fxg4 {[%emt 0:00:33]} Rxg4 {[%emt 0:00:07]} 58. Rb8 {[%emt 0:01:55]} Rg5 {[%emt 0:01:22]} 59. Rh8 {[%emt 0:05:46]} Rh5 {[%emt 0:00:16]} 60. Rg8+ {[%emt 0:01:53]} Kf5 {[%emt 0:00:07]} 61. Kf3 {[%emt 0:02:20]} h3 {[%emt 0:00:11]} 62. Rg1 {[%emt 0:00:04]} h2 {[%emt 0:00:30]} 63. Rh1 {[%emt 0:00:05]} Rh3+ {[%emt 0:00:35]} 64. Kg2 {[%emt 0:02:57]} Kg4 {[%emt 0:00:25]} 65. Kf2 {[%emt 0:00:37]} f5 {[%emt 0:00:08]} 66. Kg2 {[%emt 0:01:32]} f4 {[%emt 0:00:06]} 67. Kf2 {[%emt 0:01:14]} f3 {[%emt 0:00:06]} 68. Ke1 {[%emt 0:00:47]} Kg3 {[%emt 0:00:06]} 69. Kf1 {[%emt 0:00:21]} f2 {[%emt 0:00:16]} 70. Ke2 {[%emt 0:00:24]} Kg2 {[%emt 0:00:10]} 71. Rf1 {[%emt 0:00:06]} Re3+ {[%emt 0:00:27]} 0-1